Cogmind - Beta 13 @@@ ROGUE MODE // 2024.06.19 @ 21:40:02 Player: Lunace Result: Destroyed by C-57 Dissector with Dual-blade Saw Performance ------------- Evolutions (8) 4000 Regions Visited (11) 2200 Robots Destroyed (88) 440 Value Destroyed (2203) 2203 Prototype IDs (13) 260 Alien Tech Used (0) 0 Bonus (0) 0 TOTAL SCORE: 9103 Bonus ------- None Cogmind --------- Core Integrity 0/1450 Matter 16/300 Energy 100/100 System Corruption 2% Temperature Cool (0) Movement Core (50) Location -2/Research Parts ------- > --- POWER (2) -------- (None) > --- PROPULSION (6) --- (None) > --- UTILITY (13) ----- (None) > --- WEAPON (2) ------- (None) > --- INVENTORY (5) ---- Quantum Reactor Micro-nuke Launcher Enhanced Force Lance Peak State ------------ > --- POWER ------------ Compact Particle Reactor Compact Particle Reactor > --- PROPULSION ------- Cooled Gravmag System Combat Gravmag System Improved Gyrokinetic Inverter Combat Antigrav System Combat Antigrav System Combat Antigrav System > --- UTILITY ---------- Improved Heat Sink Small Storage Unit Structural Scanner Trap Scanner Enhanced Optical Array Improved Signal Interpreter Advanced ECM Suite Improved Light Armor Plating Advanced Hacking Suite Advanced System Shield Improved Trap Extractor > --- WEAPON ----------- Advanced Datajack Power Maul > --- INVENTORY -------- Compact Particle Reactor Compact Particle Reactor Coolant Network Transmission Jammer Advanced Component Analysis Suite Light Antimatter Cannon [Rating: 117] Favorites ----------- Power Compact Particle Reactor Engine Ion Engine Power Core Micro Nuclear Core Reactor Compact Particle Reactor Propulsion Cooled Airjet Treads Light Treads Hover Unit Cooled Airjet Flight Unit Cooled Field Propulsion Drive Utility Small Storage Unit Device Structural Scanner Storage Small Storage Unit Processor Corruption Screen Hackware System Shield Protection Improved Light Armor Plating Weapon Power Maul Energy Gun EM Pulse Gun Ballistic Gun Assault Rifle Ballistic Cannon Light Antimatter Cannon Launcher Rocket Launcher Impact Weapon Power Maul Piercing Weapon Enhanced Force Lance Special Melee Weapon Improved Datajack Build | -11 -10 -10 -10 -9 -8 -7 -6 -5 -4 -3 -2 ------- Run | Yrd Mat Min Exi Min Mat Fac Fac Fac Fac Res Res Slots Evolved 16 | . . . . . 4 2 2 2 2 2 2 Power 1 | . . . . . . . . 1 . . . Propulsion 4 | . . . . . 2 . 1 1 . . . Utility 11 | . . . . . 2 2 1 . 2 2 2 Weapon . | . . . . . . . . . . . . Parts Attached 103 | 7 2 2 . 5 8 13 11 10 14 18 13 Power 13 | 1 . . . 1 . 1 2 . 2 5 1 Engine 4 | 1 . . . . . 1 2 . . . . Core 4 | . . . . 1 . . . . 2 1 . Reactor 5 | . . . . . . . . . . 4 1 Propulsion 32 | 2 . . . . 3 3 5 5 5 3 6 Treads 2 | 2 . . . . . . . . . . . Leg . | . . . . . . . . . . . . Wheel . | . . . . . . . . . . . . Hover 23 | . . . . . 3 2 5 5 5 3 . Flight 7 | . . . . . . 1 . . . . 6 Utility 41 | 2 2 . . 2 4 6 4 5 6 7 3 Device 17 | 1 . . . 2 . 3 1 1 3 5 1 Storage 5 | 1 1 . . . 1 . 1 . 1 . . Processor 11 | . 1 . . . 2 1 1 1 1 2 2 Hackware 5 | . . . . . 1 2 . 2 . . . Protection 3 | . . . . . . . 1 1 1 . . Artifact . | . . . . . . . . . . . . Weapon 17 | 2 . 2 . 2 1 3 . . 1 3 3 Energy Gun 4 | 1 . . . 2 . . . . . . 1 Energy Cannon . | . . . . . . . . . . . . Ballistic Gun 2 | 1 . 1 . . . . . . . . . Ballistic Cannon 2 | . . . . . . . . . . 2 . Launcher 2 | . . . . . . 1 . . . . 1 Special Weapon . | . . . . . . . . . . . . Impact Weapon 3 | . . 1 . . 1 1 . . . . . Slashing Weapon . | . . . . . . . . . . . . Piercing Weapon 1 | . . . . . . . . . . . 1 Special Melee Weapon 3 | . . . . . . 1 . . 1 1 . Unidentified Prototypes 7 | . . . . . . 1 1 . . 3 2 Parts Lost 41 | . . 1 . . 1 7 . . 4 19 9 Power 5 | . . . . . . 1 . . 1 2 1 Propulsion 14 | . . . . . 1 3 . . 2 3 5 Utility 16 | . . . . . . 3 . . . 11 2 Weapon 6 | . . 1 . . . . . . 1 3 1 Highest Loss Streak 9 | . . 1 . . 1 7 . . 3 9 4 To Critical Strikes . | . . . . . . . . . . . . Average Slot Usage (%) 83 | . 100 97 100 100 79 68 98 94 96 80 34 Engine 3 | . 14 14 14 8 . 2 5 5 1 . . Core 2 | . . . . 5 9 3 . . 6 . . Reactor 1 | . . . . . . . . . . 7 1 Treads 5 | . 28 28 28 28 6 . . . . . . Hover 18 | . . . . . 18 15 33 35 30 21 7 Device 12 | . 7 . . 14 5 6 17 16 20 18 5 Storage 5 | . 14 14 14 14 9 3 5 5 5 2 . Processor 9 | . 6 14 14 . 5 11 11 10 5 8 8 Hackware 6 | . . . . . 7 10 6 5 10 6 3 Protection 1 | . . . . . . . 2 . 5 2 . Energy Gun 1 | . 14 . . 10 15 . . . . . 1 Ballistic Gun 2 | . 14 19 14 8 . . . . . . . Impact Weapon 5 | . . 4 14 8 2 6 6 5 5 2 . Special Melee Weapon 2 | . . . . . . 3 6 5 4 3 . Naked Turns 46 | . . . . . . . . . . . 46 Heaviest Build 46 | 15 30 29 28 35 35 18 26 26 42 46 24 Greatest Support 85 | 40 40 40 40 40 40 24 42 54 84 85 44 Greatest Overweight (x) 2 | . . . . . . 2 . . . 1 1 Average Overweight (x) . | . . . . . . . . . . . . Largest Inventory Capacity 15 | 8 15 15 15 15 15 8 8 8 8 8 5 Average Capacity 8 | 7 12 15 15 15 10 6 7 8 8 6 5 Most Carried 15 | 1 4 9 13 14 15 6 8 8 8 7 4 Average Carried 5 | . 2 7 11 12 9 4 6 7 6 3 1 Final Capacity 15 | 8 15 15 15 15 8 5 8 8 8 5 5 Final Carried 14 | 1 4 9 13 14 5 5 8 8 7 . 3 Class Distribution -------------------- 59% | Mutant 36% | Hacker-Mutant Dominant Class ---------------- Mutant | -10/Materials Mutant | -10/Mines Mutant | -10/Exiles Mutant | -9/Mines Mutant | -8/Materials Mutant | -7/Factory Mutant | -6/Factory Sprinter | -5/Factory Hacker-Mutant | -4/Factory Hacker-Mutant | -3/Research Mutant | -2/Research Resources | -11 -10 -10 -10 -9 -8 -7 -6 -5 -4 -3 -2 ----------- Run | Yrd Mat Min Exi Min Mat Fac Fac Fac Fac Res Res Matter Collected 1542 | 390 65 41 . . 65 239 115 55 220 313 39 Remotely . | . . . . . . . . . . . . Salvage Created 2702 | 288 164 257 . . 135 752 283 59 235 490 39 Parts 101 | 19 11 8 . . 13 9 5 1 5 25 5 Haulers Intercepted 3 | . . . . . . 1 2 . . . . Recyclers Shooed 4 | . . . . . . 1 . . . 3 . Parts Field Recycled . | . . . . . . . . . . . . Retrieved Matter . | . . . . . . . . . . . . Parts Self-Destructed . | . . . . . . . . . . . . Prevented . | . . . . . . . . . . . . Kills | -11 -10 -10 -10 -9 -8 -7 -6 -5 -4 -3 -2 ------- Run | Yrd Mat Min Exi Min Mat Fac Fac Fac Fac Res Res Combat Hostiles Destroyed 44 | . 7 6 . . 6 10 2 1 3 8 1 Melee 11 | . . 2 . . . 4 1 . 3 . 1 Guns 15 | . 6 3 . . 6 . . . . . . Cannons 8 | . . . . . . . . . . 8 . AOE 1 | . 1 . . . . . . . . . . Classes Destroyed 14 | 3 2 . . . 1 5 . . 1 2 . Worker 9 | 1 . . . . . 2 1 1 . 3 1 Builder 6 | . . . . . . . . . 3 3 . Tunneler 10 | 8 . . . . . 2 . . . . . Hauler 3 | . . . . . . 1 2 . . . . Recycler 6 | 1 . 1 . . . 3 . . . 1 . Operator 4 | . . . . . . 2 1 . 1 . . Watcher 6 | . . . . . . 2 1 1 2 . . Swarmer 18 | . 6 3 . . 4 4 . 1 . . . Cutter 3 | . . . . . . . . . . 2 1 Grunt 9 | . 1 3 . . 1 2 . . . 2 . Brawler 1 | . . . . . . . . . . 1 . Duelist 1 | . . . . . 1 . . . . . . Sentry 3 | . . . . . . 3 . . . . . Programmer 9 | . . . . . . 1 2 . 3 3 . Best Kill Streak 8 | 5 6 4 . . 4 8 4 1 3 7 1 Combat Bots Only 6 | . 6 3 . . 4 4 1 1 2 5 1 Max Kills in Single Turn 2 | 1 1 1 . . 2 1 1 1 1 1 1 Gunslinging 1 | . . . . . 1 . . . . . . Exploded 1 | . 1 . . . . . . . . . . Melee 1 | . . 1 . . . 1 1 . 1 . 1 Uniques/NPCs Destroyed . | . . . . . . . . . . . . Combat | -11 -10 -10 -10 -9 -8 -7 -6 -5 -4 -3 -2 -------- Run | Yrd Mat Min Exi Min Mat Fac Fac Fac Fac Res Res Hostile Shots Fired 564 | . 29 30 . 2 15 89 19 10 84 171 115 Missed 193 | . 4 5 . 1 6 30 6 5 34 62 40 Damage Taken 7444 | 12 199 255 . 12 127 578 222 257 966 2627 2189 Core 2860 | 6 32 34 . 12 16 225 28 192 210 636 1469 Absorbed by Shields 23 | . . . . . . . . . . . 23 Regen/Repaired (Parts) 202 | . . . . . . . 54 . 148 . . Core Remaining (%) 79 | 97 . . . 66 97 67 96 80 81 51 . Volleys Fired 149 | 40 15 8 . . 9 4 . . . 64 9 Largest 2 | 2 2 2 . . 2 1 . . . 1 1 Hottest 145 | 60 60 60 . . 145 33 . . . 60 65 Shots Fired 186 | 59 30 9 . . 11 4 . . . 64 9 Gun 117 | 59 30 9 . . 11 . . . . . 8 Cannon 64 | . . . . . . . . . . 64 . Launcher 5 | . . . . . . 4 . . . . 1 Special . | . . . . . . . . . . . . Kinetic 127 | 40 15 8 . . . . . . . 64 . Thermal 19 | . . . . . 11 . . . . . 8 Explosive 5 | . . . . . . 4 . . . . 1 Electromagnetic 35 | 19 15 1 . . . . . . . . . Robot Hit Streak 9 | 8 9 2 . . 9 . . . . 6 5 Robot Miss Streak 5 | 5 4 2 . . 3 . . . . 4 2 Penetration Max . | . . . . . . . . . . . . Secondary Targets 3 | . 2 . . . 1 . . . . . . Max Gunslinging Chain 1 | . 1 . . . 1 . . . . . . Shots Hit Robots 195 | 34 17 13 . . 10 31 15 4 23 40 8 Core Hits 65 | 12 7 5 . . 8 3 1 1 3 19 6 Critical Kills 3 | . . 1 . . . 1 1 . . . . Critical Parts Destroyed 23 | . . 1 . . . 8 7 1 4 2 . Critical Strikes 28 | . . 2 . . . 9 8 1 4 4 . Blast 2 | . . . . . . . . . . 2 . Smash 26 | . . 2 . . . 9 8 1 4 2 . Melee Attacks 156 | . . 9 . . 2 45 24 11 39 15 11 Impact 141 | . . 9 . . 2 44 23 11 37 15 . Slashing . | . . . . . . . . . . . . Piercing 11 | . . . . . . . . . . . 11 Sneak Attacks 23 | . . 1 . . . 11 4 1 4 2 . Combat Hostiles . | . . . . . . . . . . . . Follow-up Attacks . | . . . . . . . . . . . . Damage Inflicted 8165 | 561 217 291 . . 204 2010 890 296 1241 1894 561 Guns 1070 | 462 190 64 . . 204 . . . . . 150 Cannons 1454 | . . . . . . . . . . 1454 . Explosions 402 | 99 27 . . . . . . . . . 276 Melee 5182 | . . 227 . . . 2010 890 296 1241 395 123 Ramming 57 | . . . . . . . . . . 45 12 Kinetic 1874 | 284 72 64 . . . . . . . 1454 . Thermal 480 | 99 27 . . . 204 . . . . . 150 Explosive 276 | . . . . . . . . . . . 276 Electromagnetic 296 | 178 118 . . . . . . . . . . Impact 5059 | . . 227 . . . 2010 890 296 1241 395 . Slashing . | . . . . . . . . . . . . Piercing 123 | . . . . . . . . . . . 123 Highest Corruption 23 | . . . . . . . . . 2 23 2 Average Corruption 6 | . . . . . . . . . 1 14 1 Corruption Purged . | . . . . . . . . . . . . Corruption Blocked 6 | . . . . . . 2 4 . . . . Effects 19 | . . . . . . . . . 5 13 1 Message Errors 8 | . . . . . . . . . 1 6 1 Matter Fused 1 | . . . . . . . . . 1 . . Heat Flow Errors 3 | . . . . . . . . . 1 2 . Energy Discharges 3 | . . . . . . . . . 1 2 . Data Loss (minor) 2 | . . . . . . . . . 1 1 . Misdirections 2 | . . . . . . . . . . 2 . Overload Shots . | . . . . . . . . . . . . Overflow Damage 2897 | . . 62 . . . 1230 524 117 656 279 29 Projectiles 85 | . . . . . . . . . . 85 . Explosions 29 | . . . . . . . . . . . 29 Melee 2783 | . . 62 . . . 1230 524 117 656 194 . Knockbacks 34 | . . 1 . . . 8 1 2 3 19 . Impact 18 | . . 1 . . . 8 1 2 3 3 . Kinetic 12 | . . . . . . . . . . 12 . Secondary 4 | . . . . . . . . . . 4 . Self-Inflicted Damage 94 | 13 . . . . . . . . . 22 59 Shots 2 | 1 . . . . . . . . . . 1 Rammed 7 | . . . . . . . . . . 2 5 Targets Rammed 7 | . . . . . . . . . . 2 5 Kicked . | . . . . . . . . . . . . Crushed . | . . . . . . . . . . . . Highest Temperature 231 | 12 12 . . . 131 5 . . 225 231 . Average Temperature 50 | 12 9 . . . 65 5 . . 32 98 . Received Heat Transfer 582 | . 12 78 . 6 9 129 12 21 48 132 135 Effects 2 | . . . . . . . . . . 2 . Interference 2 | . . . . . . . . . . 2 . Siege Activations . | . . . . . . . . . . . . Robots Corrupted . | . . . . . . . . . . . . Combat Hostiles . | . . . . . . . . . . . . Parts Fried 39 | 1 . 2 . . . 22 6 1 6 1 . Impact Corruptions 105 | . . 3 . . . 44 20 6 23 9 . Robots Melted . | . . . . . . . . . . . . Combat Hostiles . | . . . . . . . . . . . . Parts Melted 3 | . . . . . 3 . . . . . . Heat Transferred 897 | 200 50 . . . 462 . . . . . 185 Parts Sabotaged . | . . . . . . . . . . . . Parts Stolen . | . . . . . . . . . . . . Parts Stripped . | . . . . . . . . . . . . Power Chain Reactions 2 | 1 1 . . . . . . . . . . Alert | -11 -10 -10 -10 -9 -8 -7 -6 -5 -4 -3 -2 ------- Run | Yrd Mat Min Exi Min Mat Fac Fac Fac Fac Res Res Peak Influence 412 | 50 294 274 . . 142 312 316 221 412 313 403 Initial 216 | . 32 114 . . . 64 53 74 107 216 161 Average 161 | 20 223 191 . . 67 142 160 88 235 223 222 Maximum Alert Level 2 | . 1 1 . . . 1 1 1 2 1 2 Low Security (%) 65 | 100 30 70 . 100 100 85 69 99 32 33 53 Level 1 34 | . 69 29 . . . 14 30 . 67 66 41 Level 2 . | . . . . . . . . . . . 5 Level 3 . | . . . . . . . . . . . . Level 4 . | . . . . . . . . . . . . Level 5 . | . . . . . . . . . . . . High Security . | . . . . . . . . . . . . Max Security . | . . . . . . . . . . . . Squads Dispatched 21 | . 1 . . . 1 3 3 . 3 4 6 Investigation 3 | . . . . . . 1 . . 2 . . Extermination 5 | . . . . . . 1 1 . 1 1 1 Reinforcement 13 | . 1 . . . 1 1 2 . . 3 5 Assault . | . . . . . . . . . . . . Garrison . | . . . . . . . . . . . . Intercept . | . . . . . . . . . . . . Searches Triggered . | . . . . . . . . . . . . Construction Impeded 2 | . . . . . . . . . . 1 1 Haulers Reinforced 1 | . . . . . . . . . . . 1 Active Scanning Responses . | . . . . . . . . . . . . Cargo Convoy Interrupts . | . . . . . . . . . . . . Stealth | -11 -10 -10 -10 -9 -8 -7 -6 -5 -4 -3 -2 --------- Run | Yrd Mat Min Exi Min Mat Fac Fac Fac Fac Res Res Distress Signals 10 | . 1 . . . . . 1 1 2 2 3 Communications Jammed . | . . . . . . . . . . . . Distress Signals . | . . . . . . . . . . . . Times Spotted 166 | . 9 7 . 3 13 15 11 17 31 38 22 Peak Tracking Total 13 | . 3 4 . 3 4 4 4 7 11 13 13 Tactical Retreats 29 | . . 1 . . . 1 2 3 7 8 7 Traps | -11 -10 -10 -10 -9 -8 -7 -6 -5 -4 -3 -2 ------- Run | Yrd Mat Min Exi Min Mat Fac Fac Fac Fac Res Res Traps Triggered 3 | . . . . . 1 . . . 1 . 1 Indirectly . | . . . . . . . . . . . . Trap Hack Attempts 211 | . . . . . . 59 53 15 41 43 . Triggered 1 | . . . . . . . . . . 1 . Disarmed 1 | . . . . . . . . . 1 . . Reprogrammed 14 | . . . . . . 3 2 1 5 3 . Reused 12 | . . . . . . . 4 2 3 3 . Traps Extracted 17 | . . . . . . 4 1 1 8 3 . Installed 17 | . . . . . . 1 3 2 8 3 . Triggered 12 | . . . . . . . 4 2 3 3 . Most Traps Carried 5 | . . . . . . 3 3 2 5 3 . Machines | -11 -10 -10 -10 -9 -8 -7 -6 -5 -4 -3 -2 ---------- Run | Yrd Mat Min Exi Min Mat Fac Fac Fac Fac Res Res Machines Disabled 2 | . 2 . . . . . . . . . . Max in Single Turn 2 | . 2 . . . . . . . . . . Garrison Access 2 | . . . . . . 1 . . 1 . . Machines Repaired . | . . . . . . . . . . . . Machines Dismantled . | . . . . . . . . . . . . Machines Sabotaged . | . . . . . . . . . . . . Overloaded Fab Kills . | . . . . . . . . . . . . Hacking | -11 -10 -10 -10 -9 -8 -7 -6 -5 -4 -3 -2 --------- Run | Yrd Mat Min Exi Min Mat Fac Fac Fac Fac Res Res Machines Accessed 37 | . 2 . 1 1 1 11 6 3 9 1 2 Terminals 18 | . 2 . . . 1 6 2 3 2 . 2 Fabricators 3 | . . . . . . 1 . . 1 1 . Repair Stations 3 | . . . . . . . 2 . 1 . . Recycling Units 8 | . . . . . . 3 2 . 3 . . Scanalyzers 1 | . . . . . . . . . 1 . . Garrison Access 2 | . . . . . . 1 . . 1 . . Total Hacks 126 | . 6 . 1 1 2 50 17 10 33 1 5 Successful 60 | . 2 . 1 1 . 25 6 4 18 . 3 Failed 66 | . 4 . . . 2 25 11 6 15 1 2 Catastrophic 16 | . 1 . . . 1 6 4 2 2 . . Database Lockouts . | . . . . . . . . . . . . Manual 50 | . 3 . . . . 26 5 4 9 . 3 Terminals 85 | . 6 . . . 2 41 6 10 15 . 5 Fabricators 6 | . . . . . . 2 . . 3 1 . Repair Stations 8 | . . . . . . . 5 . 3 . . Recycling Units 18 | . . . . . . 5 6 . 7 . . Scanalyzers 4 | . . . . . . . . . 4 . . Garrison Access 3 | . . . . . . 2 . . 1 . . Terminal Hacks 23 | . 2 . 1 1 . 13 1 1 2 . 2 Record 1 | . . . 1 . . . . . . . . Part Schematic 3 | . . . . . . 3 . . . . . Prototype ID Bank 2 | . . . . . . 2 . . . . . Open Door 1 | . . . . 1 . . . . . . . Level Access Points 1 | . . . . . . 1 . . . . . Branch Access Points 5 | . 1 . . . . 1 1 . 1 . 1 Machine Index 1 | . . . . . . . . . 1 . . Unreport Threat 3 | . . . . . . 2 . 1 . . . Locate Traps 3 | . 1 . . . . 2 . . . . . Recall Reinforcements 2 | . . . . . . 1 . . . . 1 Registered Components 1 | . . . . . . 1 . . . . . Fabricator Hacks 4 | . . . . . . 2 . . 2 . . Load Schematic 2 | . . . . . . 1 . . 1 . . Build 2 | . . . . . . 1 . . 1 . . Repair Station Hacks 4 | . . . . . . . 2 . 2 . . Scan Component 2 | . . . . . . . 1 . 1 . . Repair 2 | . . . . . . . 1 . 1 . . Recycling Unit Hacks 7 | . . . . . . 2 1 . 4 . . Retrieve Components 7 | . . . . . . 2 1 . 4 . . Scanalyzer 4 | . . . . . . . . . 4 . . Insert Component 1 | . . . . . . . . . 1 . . Analyze 3 | . . . . . . . . . 3 . . Garrison Access Hacks 2 | . . . . . . 1 . . 1 . . Seal Access 2 | . . . . . . 1 . . 1 . . Unauthorized Hacks 16 | . . . . . . 7 2 3 3 . 1 Terminals 14 | . . . . . . 7 . 3 3 . 1 Assimilate 1 | . . . . . . 1 . . . . . Botnet 10 | . . . . . . 5 . 2 2 . 1 Operators 3 | . . . . . . 1 . 1 1 . . Fabricators . | . . . . . . . . . . . . Repair Stations . | . . . . . . . . . . . . Recycling Units 2 | . . . . . . . 2 . . . . Monitor 1 | . . . . . . . 1 . . . . Recyclers 1 | . . . . . . . 1 . . . . Scanalyzers . | . . . . . . . . . . . . Garrison Access . | . . . . . . . . . . . . Data Cores Recovered 2 | . . . . . . 1 . . 1 . . Used 2 | . . . . . . 1 . . 1 . . Hacking Detections 28 | . 2 . . . 1 9 5 3 5 1 2 Full Trace Events 2 | . . . . . . 1 . . 1 . . Feedback Events . | . . . . . . . . . . . . Feedback Blocked . | . . . . . . . . . . . . Robot Schematics Acquired . | . . . . . . . . . . . . Robots Built . | . . . . . . . . . . . . Authchips . | . . . . . . . . . . . . Time . | . . . . . . . . . . . . Total Robot Build Rating . | . . . . . . . . . . . . Part Schematics Acquired 4 | . . . . . . 3 . . 1 . . Parts Built 3 | . . . . . . 1 . . 2 . . Authchips . | . . . . . . . . . . . . Time 201 | . . . . . . 73 . . 128 . . Total Part Build Rating 19 | . . . . . . 3 . . 16 . . Parts Repaired 2 | . . . . . . . 1 . 1 . . Time 90 | . . . . . . . 22 . 68 . . Parts Recycled . | . . . . . . . . . . . . Recycled Matter . | . . . . . . . . . . . . Retrieved Matter . | . . . . . . . . . . . . Retrieved Components 8 | . . . . . . 1 3 . 4 . . Parts Scanalyzed 1 | . . . . . . . . . 1 . . Part Schematics Acquired 1 | . . . . . . . . . 1 . . Parts Damaged . | . . . . . . . . . . . . Bothacking | -11 -10 -10 -10 -9 -8 -7 -6 -5 -4 -3 -2 ------------ Run | Yrd Mat Min Exi Min Mat Fac Fac Fac Fac Res Res Used RIF Installer . | . . . . . . . . . . . . Robots Hacked 3 | . . . . . . 1 1 . 1 . . Non-combat 3 | . . . . . . 1 1 . 1 . . Combat . | . . . . . . . . . . . . Robot Hacks Applied 3 | . . . . . . 1 1 . 1 . . no_distress 3 | . . . . . . 1 1 . 1 . . Relay Couplers Released . | . . . . . . . . . . . . Fabnet Peak Effective % . | . . . . . . . . . . . . Robots Rewired . | . . . . . . . . . . . . Allies Hacked . | . . . . . . . . . . . . Hacks Repelled . | . . . . . . . . . . . . Allies | -11 -10 -10 -10 -9 -8 -7 -6 -5 -4 -3 -2 -------- Run | Yrd Mat Min Exi Min Mat Fac Fac Fac Fac Res Res Total Allies . | . . . . . . . . . . . . Largest Group . | . . . . . . . . . . . . Highest-Rated Group . | . . . . . . . . . . . . Highest-Rated Ally . | . . . . . . . . . . . . Total Orders . | . . . . . . . . . . . . Ally Attacks . | . . . . . . . . . . . . Total Damage . | . . . . . . . . . . . . Kills . | . . . . . . . . . . . . Allies Corrupted . | . . . . . . . . . . . . Allies Melted . | . . . . . . . . . . . . Intel | -11 -10 -10 -10 -9 -8 -7 -6 -5 -4 -3 -2 ------- Run | Yrd Mat Min Exi Min Mat Fac Fac Fac Fac Res Res Robot Analysis Total . | . . . . . . . . . . . . Derelict Logs Recovered 3 | . . 1 . 2 . . . . . . . Drone Launches . | . . . . . . . . . . . . Drone Recoveries . | . . . . . . . . . . . . Exploration | -11 -10 -10 -10 -9 -8 -7 -6 -5 -4 -3 -2 ------------- Run | Yrd Mat Min Exi Min Mat Fac Fac Fac Fac Res Res Turns Passed 4664 | 346 171 171 232 192 165 912 454 284 689 719 329 Spaces Moved 4983 | 139 72 73 143 53 153 1069 731 515 911 686 438 Core 161 | 3 . . . . . 57 . . . . 101 Treads 505 | 136 72 73 143 53 28 . . . . . . Legs . | . . . . . . . . . . . . Wheels . | . . . . . . . . . . . . Hover 4146 | . . . . . 125 1012 731 515 911 686 166 Flight 171 | . . . . . . . . . . . 171 Fastest Speed 17 | 50 160 160 160 160 52 50 34 30 38 54 17 Average Speed 60 | 157 160 160 160 160 71 56 35 37 48 60 50 Slowest Speed 160 | 160 160 160 160 160 160 150 56 48 61 126 110 Overloaded Moves 43 | . . . . . . . . . . . 43 Propulsion Burnouts . | . . . . . . . . . . . . Robots Hopped 4 | . . . . . . . . . . . 4 Cave-ins Triggered . | . . . . . . . . . . . . Exploration Rate (%) 22 | 6 24 18 48 13 21 20 26 27 31 19 12 Regions Visited 11 Branch Regions 3 Pre-discovered Areas 1 | . . . 1 . . . . . . . . Known Exits Taken 5 | . 1 1 1 . . 1 . . . 1 . Unknown Exits Taken 6 | 1 . . . 1 1 . 1 1 1 . . Scrap Searched . | . . . . . . . . . . . . Spaces Dug 40 | . . . . . 2 11 6 5 4 12 . Terrain Destroyed 114 | 4 2 . . . 2 48 6 5 4 31 12 Melee 34 | . . . . . 2 11 6 5 4 6 . Projectile 25 | . . . . . . . . . . 25 . AOE 55 | 4 2 . . . . 37 . . . . 12 Terrain Rammed . | . . . . . . . . . . . . Walls Destroyed . | . . . . . . . . . . . . Machines Disabled . | . . . . . . . . . . . . Actions | -11 -10 -10 -10 -9 -8 -7 -6 -5 -4 -3 -2 --------- Run | Yrd Mat Min Exi Min Mat Fac Fac Fac Fac Res Res Total 6132 | 204 98 102 146 163 195 1280 876 581 1084 894 509 Wait 395 | 18 5 6 . 91 2 74 45 21 55 50 28 Move 4967 | 138 71 72 142 52 152 1068 730 514 910 686 432 Hop 2 | . . . . . . . . . . . 2 Pick Up 56 | 1 3 5 4 6 7 7 5 1 7 6 4 Fast Attach 55 | 7 1 1 . 2 4 5 7 5 3 10 10 Attach 31 | . . . . 2 3 7 2 3 4 7 3 Detach 8 | . . . . 1 . 2 1 1 1 . 2 Swap 17 | . 1 1 . 1 1 1 2 2 7 1 . Drop 61 | . 2 . . 8 15 7 4 6 9 8 2 Fire 149 | 40 15 8 . . 9 4 . . . 64 9 Melee 156 | . . 9 . . 2 45 24 11 39 15 11 Ram 6 | . . . . . . . . . . 1 5 Kick . | . . . . . . . . . . . . Crush . | . . . . . . . . . . . . Escape Stasis 1 | . . . . . . . . . . . 1 Rewire . | . . . . . . . . . . . . Trap 228 | . . . . . . 60 56 17 49 46 . Miscellaneous . | . . . . . . . . . . . . Route ------- -11/Scrapyard -10/Materials -10/Mines -10/Exiles -9/Mines (discovered 2 exits: *Mat x2) -8/Materials -7/Factory (discovered 7 exits: *Fac x4 / Sto / Low x2) -6/Factory (discovered 3 exits: *Fac / *Low x2) -5/Factory -4/Factory (discovered 4 exits: *Res / Upp x2 / Arm) -3/Research -2/Research (discovered 2 exits: Qua x2) History --------- Turn | Location | Event 14 | -11/Scrapyard | Discovered new exit (range 15) 347 | -11/Scrapyard | Entered Materials 348 | -10/Materials | Build established: Mutant 360 | -10/Materials | Identified exit to Mines 518 | -10/Materials | Entered Mines 613 | -10/Mines | Learned 2 Materials zone layouts 683 | -10/Mines | Deemed a non-threat by the Exiles lab entrance 683 | -10/Mines | Discovered new exit (range 5) 688 | -10/Mines | Identified exit to Exiles 689 | -10/Mines | Entered Exiles 732 | -10/Exiles | Met 8R-AWN 758 | -10/Exiles | Met EX-HEX 822 | -10/Exiles | Met EX-DEC 828 | -10/Exiles | Learned location of Zion (-7) 901 | -10/Exiles | Discovered new exit (range 14) 919 | -10/Exiles | Identified exit to Mines 921 | -10/Exiles | Entered Mines 930 | -9/Mines | Met a Derelict who couldn't figure out how to use a Trap Extractor 1082 | -9/Mines | Discovered new exit (range 5) 1097 | -9/Mines | Discovered new exit (range 9) 1098 | -9/Mines | Learned location of 1 exit from Proximity Caves 1101 | -9/Mines | Learned Materials security intel 1113 | -9/Mines | Entered Materials 1113 | -8/Materials | Evolved 4 slots: Propulsion x2, Utility x2 1270 | -8/Materials | Discovered new exit (range 16) 1278 | -8/Materials | Entered Factory 1278 | -7/Factory | Evolved 2 slots: Utility x2 1407 | -7/Factory | Identified exit to Storage 1407 | -7/Factory | Identified exit to Lower Caves 1424 | -7/Factory | Fabricated Hacking Suite? 1437 | -7/Factory | Build established: Hacker-Mutant 1721 | -7/Factory | Lost 7 parts (1p3n3u) 1955 | -7/Factory | Build established: Mutant 2097 | -7/Factory | Identified exit to Factory 2190 | -7/Factory | Entered another Factory area 2190 | -6/Factory | Evolved 2 slots: Propulsion x1, Utility x1 2234 | -6/Factory | Repaired Imp. Deuterium Engine 2366 | -6/Factory | Identified exit to Lower Caves 2621 | -6/Factory | Discovered new exit (range 20) 2644 | -6/Factory | Entered another Factory area 2644 | -5/Factory | Evolved 2 slots: Power x1, Propulsion x1 2721 | -5/Factory | Spotted B-75 Beast 2919 | -5/Factory | Discovered new exit (range 13) 2928 | -5/Factory | Entered another Factory area 2928 | -4/Factory | Evolved 2 slots: Utility x2 3057 | -4/Factory | Identified exit to Upper Caves 3057 | -4/Factory | Identified exit to Armory 3130 | -4/Factory | Repaired Cmb. Antigrav System 3162 | -4/Factory | Build established: Hacker-Mutant 3362 | -4/Factory | Fabricated Cmb. Antigrav System (x2) 3564 | -4/Factory | Lost 3 parts (1p1n1w) 3582 | -4/Factory | Spotted B-86 Titan 3613 | -4/Factory | Discovered new exit (range 6) 3617 | -4/Factory | Entered Research 3617 | -3/Research | Evolved 2 slots: Utility x2 4007 | -3/Research | Lost 3 parts (3u) 4042 | -3/Research | System corruption reached 10% 4104 | -3/Research | Lost 9 parts (1p3n4u1w) 4331 | -3/Research | Discovered new exit (range 9) 4336 | -3/Research | Identified exit to Research 4336 | -3/Research | Entered another Research area 4336 | -2/Research | Evolved 2 slots: Utility x2 4367 | -2/Research | Lost 7 parts (1p4u2w) 4485 | -2/Research | Found Enh. Force Lance 4510 | -2/Research | Identified exit to Quarantine 4616 | -2/Research | Core integrity fell below 50% 4625 | -2/Research | Build established: Mutant 4633 | -2/Research | Lost 4 parts (4n) 4647 | -2/Research | Core integrity fell below 20% 4665 | -2/Research | Destroyed by C-57 Dissector with Dual-blade Saw Last Messages --------------- corruption cleaned. 04641_ Slammed into U-05 Engineer. 04641_ Triggered Stasis Trap. 04641_ A bubble of rippling energy engulfs the area. 04641_ Field strength at 94. 04642_ Field strength at 88. 04644_ Destroyed Adv. Surge Thruster. 04644_ K-01 Serf destroyed. 04644_ ALERT: Construction progress impeded, dispatching reinforcements to local area. 04647_ Door malfunctions. 04648_ K-01 Serf collects debris. 04652_ C-57 Dissector destroyed. 04653_ Knocked back. 04654_ K-01 Serf collects debris. 04656_ Slug penetrates Wall. 04658_ H7DWVM DX=VMKUPC: &PFMU Map ----- +----------------------------------------------------+ | ?????????????????????????????????????????????????? | | ?????????????????????????????????????????????????? | | ?????????????????????????????????????????????????? | | ?????????????????????????????????????????????????? | | ?????????????????????????????????????????????????? | | ?????????????????????????????????????????????????? | | ?????????????????????????????????????????????????? | | ?????????????????????????????????????????????????? | | ?????????????????????????????????????????????????? | | ?????????????????????????????????????????????????? | | ?????????????????????????????????????????????????? | | ?????????????????????????????????????????????????? | | ????????????????????? ??????????????????????????? | | ???????????????????# ??????????????????????????? | | ???????????????????# ????????????????????????? | | ???????????????????# ????????????????????????? | | ???????????????????# "T????????????????????????? | | ???????????????????# ????????????????????????? | | ???????????????????# ????????????????????????? | | ???????????????????+ ????????????????????????? | | ???????????????????# ####+#####???????????????? | | ???????????????????# # #???????????????? | | ???????????????????# # #???????????????? | | ???????????????????# # #???????????????? | | ???????????????????# # #???????????????? | | ????????############ #@= #???????????????? | | ??????? c #???????????????? | | ??????? # """ #???????????????? | | ??????? # """ #???????????????? | | ??????? # """ #???????????????? | | ?????????########### ########?????????????????? | | ??????????# ?# #????????????????????????? | | ??????????# # #????????????????????????? | | ???????????? "" + #????????????????????????? | | ???????????? "" # #????????????????????????? | | ???????????? "T ?# #????????????????????????? | | ?????????????"" ???# #????????????????????????? | | ?????????????""????# =!#????????????????????????? | | ???????????????????# *%##???????????????????????? | | ???????????????????# = #???????????????????????? | | ??????????????????## ##???????????????????????? | | ??????????????????# #???????????????????????? | | ??????????????????# #???????????????????????? | | ??????????????????# #???????????????????????? | | ??????????????????# #???????????????????????? | | ??????????? ????# #############???????????? | | ??????????? ???# #???????????? | | ??????????? ??# #???????????? | | ????????????# ?# # #???????????? | | ????????????# # # #???????????? | +----------------------------------------------------+ Best States ------------- Heat Dissipation 155 Energy Generation 41 Energy Capacity 365 Matter Stores 300 Matter Capacity 300 Sight Range 22 Terrain Scan Range 16 Terrain Scan Density 85 ECM Strength 2 Corruption Block 8 Armor Coverage 150 Evasion (%) 72 Melee Accuracy 10 Core Analysis 6 Armor Integrity Analysis 30 Recoil Reduction 2 Offensive Hacking 14 Defensive Hacking 20 Trap Extractor Capacity 6 Item Schematics ----------------- Hacking Suite | -7/Factory | Hacked System Shield | -7/Factory | Hacked Structural Scanner | -7/Factory | Hacked Cmb. Antigrav System | -4/Factory | Scanalyzed Robot Schematics ------------------ None Fabricated ------------ Hacking Suite | x1 | -7/Factory Cmb. Antigrav System | x2 | -4/Factory Alien Tech Used ----------------- None Achievements -------------- None Challenges ------------ None Game ------ Seed AssemblyScrapInsulator Manual? 0 Play Time 01:07:30 Cumulative 267.9 hours Start 2024.06.19 @ 20:32:28 End 2024.06.19 @ 21:40:02 Sessions 1 Manual Loads 0 Difficulty Rogue Special Mode None Game No. 257 Rogue 252 Adventurer 5 Explorer 0 Win Type - Total 4 Types 3/0/0/1/0/0/0/0/0 Lore% 65 Gallery% 83 Achievement% 64 Wizard Run 0 Options --------- Layout 2 ASCII 0 Keyboard 0 Movement Mouse Keybinds 0 Fullscreen 1 Font 24/Terminus Map View 50x44 Zoom Use 0% Tactical HUD 1 Map Filters NONE Filters NONE Steam 1 RUN: ec3b9fb6-de71-4e54-ab35-8c64eb4e30e2